Workbook

Sheet Dashboard
C13: 337
J27: Previous Month Descriptives
K28: Salary | L28: Bonus | M28: OT
J29: sum | K29: 6290000 | L29: 949140 | M29: 184080
J30: average | K30: 62900 | L30: 9491.4 | M30: 1840.8
J31: max | K31: 149000 | L31: 53050 | M31: 7890
J32: min | K32: 20000 | L32: 1800 | M32: 60
J33: median | K33: 61500 | L33: 6355 | M33: 965
J34: mode | K34: 81000 | L34: 2370 | M34: 60

Sheet Data
C1: Previous Month Data | K1: sick | L1: OT | N1: bonus | O1: performance
A2: Full Name | B2: Hire Date | C2: Salary | D2: Bonus | E2: Overtime | F2: Department | G2: Sick Days | H2: Performance Score | K2: x | L2: y | N2: x | O2: y
A3: Chandler Stevens | B3: 2013-11-07 | C3: 57000 | D3: 6350 | E3: 590 | F3: Marketing | G3: 2 | H3: 1 | K3: 2 | L3: 590 | N3: 6350 | O3: 1
A4: Melvin Pickett | B4: 2013-11-07 | C4: 78000 | D4: 9190 | E4: 2280 | F4: Accounting | G4: 4 | H4: 1 | K4: 4 | L4: 2280 | N4: 9190 | O4: 1
A5: Ferris Knight | B5: 2013-11-12 | C5: 70000 | D5: 2370 | E5: 2040 | F5: Marketing | G5: 3 | H5: 4 | K5: 3 | L5: 2040 | N5: 2370 | O5: 4
A6: Jesse Barron | B6: 2013-11-12 | C6: 89000 | D6: 10400 | E6: 60 | F6: IT | G6: 1 | H6: 5 | K6: 1 | L6: 60 | N6: 10400 | O6: 5
A7: Asher Benson | B7: 2013-11-20 | C7: 34000 | D7: 2850 | E7: 1860 | F7: Accounting | G7: 1 | H7: 5 | K7: 1 | L7: 1860 | N7: 2850 | O7: 5
A8: Marvin Moses | B8: 2013-11-26 | C8: 68000 | D8: 9370 | E8: 5180 | F8: Administration | G8: 5 | H8: 1 | K8: 5 | L8: 5180 | N8: 9370 | O8: 1
A9: Ishmael Grimes | B9: 2013-12-20 | C9: 32000 | D9: 4690 | E9: 1460 | F9: Administration | G9: 1 | H9: 2 | K9: 1 | L9: 1460 | N9: 4690 | O9: 2
A10: Elmo Abbott | B10: 2013-12-20 | C10: 55000 | D10: 7680 | E10: 2100 | F10: Human Resources | G10: 1 | H10: 3 | K10: 1 | L10: 2100 | N10: 7680 | O10: 3
A11: Oren Chase | B11: 2013-12-26 | C11: 29000 | D11: 2550 | E11: 810 | F11: Human Resources | G11: 1 | H11: 1 | K11: 1 | L11: 810 | N11: 2550 | O11: 1
A12: Byron Foreman | B12: 2014-01-08 | C12: 81000 | D12: 6440 | E12: 60 | F12: R&D | G12: 3 | H12: 3 | K12: 3 | L12: 60 | N12: 6440 | O12: 3
A13: Hu Frost | B13: 2014-01-15 | C13: 39000 | D13: 2800 | E13: 1110 | F13: Accounting | G13: 3 | H13: 4 | K13: 3 | L13: 1110 | N13: 2800 | O13: 4
A14: Ferdinand Small | B14: 2014-01-23 | C14: 34000 | D14: 4350 | E14: 3060 | F14: Customer Support | G14: 3 | H14: 3 | K14: 3 | L14: 3060 | N14: 4350 | O14: 3
A15: Kasimir Mccoy | B15: 2014-01-29 | C15: 36000 | D15: 3290 | E15: 60 | F15: R&D | G15: 3 | H15: 3 | K15: 3 | L15: 60 | N15: 3290 | O15: 3
A16: Noah Rowland | B16: 2014-02-02 | C16: 71000 | D16: 9090 | E16: 3410 | F16: Finance | G16: 3 | H16: 1 | K16: 3 | L16: 3410 | N16: 9090 | O16: 1
A17: Christopher Guerra | B17: 2014-02-20 | C17: 32000 | D17: 5250 | E17: 60 | F17: R&D | G17: 1 | H17: 3 | K17: 1 | L17: 60 | N17: 5250 | O17: 3
A18: Oscar Keller | B18: 2014-02-21 | C18: 36000 | D18: 5210 | E18: 700 | F18: R&D | G18: 1 | H18: 1 | K18: 1 | L18: 700 | N18: 5210 | O18: 1
A19: Judah Robles | B19: 2014-03-07 | C19: 81000 | D19: 12600 | E19: 60 | F19: IT | G19: 4 | H19: 1 | K19: 4 | L19: 60 | N19: 12600 | O19: 1
A20: Hashim Vazquez | B20: 2014-03-10 | C20: 85000 | D20: 5910 | E20: 60 | F20: Customer Support | G20: 3 | H20: 5 | K20: 3 | L20: 60 | N20: 5910 | O20: 5
A21: Damian Silva | B21: 2014-03-14 | C21: 52000 | D21: 6810 | E21: 4860 | F21: Accounting | G21: 2 | H21: 3 | K21: 2 | L21: 4860 | N21: 6810 | O21: 3
A22: Linus Christian | B22: 2014-03-25 | C22: 52000 | D22: 5850 | E22: 3420 | F22: R&D | G22: 2 | H22: 5 | K22: 2 | L22: 3420 | N22: 5850 | O22: 5
A23: Cruz Chase | B23: 2014-03-29 | C23: 58000 | D23: 2670 | E23: 4380 | F23: Administration | G23: 1 | H23: 2 | K23: 1 | L23: 4380 | N23: 2670 | O23: 2
A24: Sawyer Byers | B24: 2014-03-29 | C24: 84000 | D24: 53050 | E24: 60 | F24: Sales | G24: 5 | H24: 5 | K24: 5 | L24: 60 | N24: 53050 | O24: 5
A25: Hasad Faulkner | B25: 2014-03-31 | C25: 48000 | D25: 2370 | E25: 940 | F25: Finance | G25: 3 | H25: 4 | K25: 3 | L25: 940 | N25: 2370 | O25: 4
A26: Jonah Mcintyre | B26: 2014-04-01 | C26: 66000 | D26: 9110 | E26: 1300 | F26: Finance | G26: 5 | H26: 2 | K26: 5 | L26: 1300 | N26: 9110 | O26: 2
A27: Hyatt Rogers | B27: 2014-04-04 | C27: 76000 | D27: 3930 | E27: 6540 | F27: R&D | G27: 2 | H27: 1 | K27: 2 | L27: 6540 | N27: 3930 | O27: 1
A28: Rajah Weber | B28: 2014-04-11 | C28: 81000 | D28: 12600 | E28: 60 | F28: IT | G28: 4 | H28: 4 | K28: 4 | L28: 60 | N28: 12600 | O28: 4
A29: Bradley Valenzuela | B29: 2014-04-18 | C29: 31000 | D29: 1860 | E29: 2220 | F29: Marketing | G29: 3 | H29: 3 | K29: 3 | L29: 2220 | N29: 1860 | O29: 3
A30: Drake Dominguez | B30: 2014-04-18 | C30: 68000 | D30: 6810 | E30: 60 | F30: IT | G30: 1 | H30: 3 | K30: 1 | L30: 60 | N30: 6810 | O30: 3
A31: Judah Suarez | B31: 2014-04-22 | C31: 149000 | D31: 17000 | E31: 5860 | F31: Administration | G31: 5 | H31: 4 | K31: 5 | L31: 5860 | N31: 17000 | O31: 4
A32: Brennan Walls | B32: 2014-04-23 | C32: 68000 | D32: 3610 | E32: 60 | F32: Administration | G32: 4 | H32: 1 | K32: 4 | L32: 60 | N32: 3610 | O32: 1
A33: Wylie Burris | B33: 2014-04-23 | C33: 81000 | D33: 29050 | E33: 60 | F33: Sales | G33: 2 | H33: 5 | K33: 2 | L33: 60 | N33: 29050 | O33: 5
A34: Wesley Conner | B34: 2014-04-29 | C34: 38000 | D34: 5130 | E34: 3120 | F34: IT | G34: 5 | H34: 1 | K34: 5 | L34: 3120 | N34: 5130 | O34: 1
A35: Oscar Dickerson | B35: 2014-05-10 | C35: 58000 | D35: 6450 | E35: 3840 | F35: Administration | G35: 3 | H35: 2 | K35: 3 | L35: 3840 | N35: 6450 | O35: 2
A36: Adam Curtis | B36: 2014-05-19 | C36: 63000 | D36: 9900 | E36: 60 | F36: Human Resources | G36: 2 | H36: 4 | K36: 2 | L36: 60 | N36: 9900 | O36: 4
A37: Dustin Harris | B37: 2014-05-19 | C37: 69000 | D37: 2350 | E37: 1360 | F37: Human Resources | G37: 4 | H37: 2 | K37: 4 | L37: 1360 | N37: 2350 | O37: 2
A38: Caldwell Shepherd | B38: 2014-05-22 | C38: 51000 | D38: 3870 | E38: 530 | F38: Human Resources | G38: 3 | H38: 5 | K38: 3 | L38: 530 | N38: 3870 | O38: 5
A39: Hector Madden | B39: 2014-06-02 | C39: 49000 | D39: 38050 | E39: 60 | F39: Sales | G39: 2 | H39: 5 | K39: 2 | L39: 60 | N39: 38050 | O39: 5
A40: Giacomo Parks | B40: 2014-06-03 | C40: 93000 | D40: 9060 | E40: 60 | F40: Marketing | G40: 3 | H40: 3 | K40: 3 | L40: 60 | N40: 9060 | O40: 3
A41: Barry Mccarthy | B41: 2014-06-15 | C41: 66000 | D41: 9110 | E41: 3160 | F41: R&D | G41: 6 | H41: 5 | K41: 6 | L41: 3160 | N41: 9110 | O41: 5
A42: Steel Stuart | B42: 2014-06-20 | C42: 91000 | D42: 8880 | E42: 7890 | F42: Customer Support | G42: 2 | H42: 4 | K42: 2 | L42: 7890 | N42: 8880 | O42: 4
A43: Bernard Wilkinson | B43: 2014-06-26 | C43: 50000 | D43: 3350 | E43: 60 | F43: Sales | G43: 6 | H43: 2 | K43: 6 | L43: 60 | N43: 3350 | O43: 2
A44: Kermit Duffy | B44: 2014-06-28 | C44: 123000 | D44: 11760 | E44: 4820 | F44: R&D | G44: 5 | H44: 2 | K44: 5 | L44: 4820 | N44: 11760 | O44: 2
A45: Griffith Nielsen | B45: 2014-07-05 | C45: 81000 | D45: 6440 | E45: 60 | F45: R&D | G45: 6 | H45: 1 | K45: 6 | L45: 60 | N45: 6440 | O45: 1
A46: Jasper Battle | B46: 2014-07-13 | C46: 44000 | D46: 2650 | E46: 1660 | F46: Finance | G46: 2 | H46: 2 | K46: 2 | L46: 1660 | N46: 2650 | O46: 2
A47: Wayne Golden | B47: 2014-07-19 | C47: 61000 | D47: 6180 | E47: 3480 | F47: Marketing | G47: 6 | H47: 1 | K47: 6 | L47: 3480 | N47: 6180 | O47: 1
A48: Gareth Wyatt | B48: 2014-07-27 | C48: 76000 | D48: 3210 | E48: 2940 | F48: Accounting | G48: 4 | H48: 5 | K48: 4 | L48: 2940 | N48: 3210 | O48: 5
A49: Harding Turner | B49: 2014-07-28 | C49: 89000 | D49: 2750 | E49: 60 | F49: IT | G49: 2 | H49: 4 | K49: 2 | L49: 60 | N49: 2750 | O49: 4
A50: Emerson Sellers | B50: 2014-08-07 | C50: 69000 | D50: 4950 | E50: 60 | F50: Marketing | G50: 6 | H50: 5 | K50: 6 | L50: 60 | N50: 4950 | O50: 5
A51: Simon Pratt | B51: 2014-08-11 | C51: 80000 | D51: 8650 | E51: 2340 | F51: R&D | G51: 4 | H51: 1 | K51: 4 | L51: 2340 | N51: 8650 | O51: 1
A52: Brennan Ellison | B52: 2014-08-19 | C52: 52000 | D52: 7290 | E52: 540 | F52: Marketing | G52: 3 | H52: 1 | K52: 3 | L52: 540 | N52: 7290 | O52: 1
A53: Ciaran Smith | B53: 2014-08-19 | C53: 61000 | D53: 5040 | E53: 630 | F53: Finance | G53: 3 | H53: 3 | K53: 3 | L53: 630 | N53: 5040 | O53: 3
A54: Geoffrey Small | B54: 2014-08-26 | C54: 77000 | D54: 2510 | E54: 5170 | F54: IT | G54: 6 | H54: 1 | K54: 6 | L54: 5170 | N54: 2510 | O54: 1
A55: Eaton Stevens | B55: 2014-08-30 | C55: 127000 | D55: 18270 | E55: 4980 | F55: Administration | G55: 5 | H55: 2 | K55: 5 | L55: 4980 | N55: 18270 | O55: 2
A56: Declan Larson | B56: 2014-09-02 | C56: 81000 | D56: 29050 | E56: 60 | F56: Sales | G56: 5 | H56: 5 | K56: 5 | L56: 60 | N56: 29050 | O56: 5
A57: Connor Baxter | B57: 2014-09-06 | C57: 42000 | D57: 2950 | E57: 60 | F57: IT | G57: 1 | H57: 3 | K57: 1 | L57: 60 | N57: 2950 | O57: 3
A58: Oscar Emerson | B58: 2014-09-20 | C58: 49000 | D58: 1950 | E58: 60 | F58: IT | G58: 1 | H58: 5 | K58: 1 | L58: 60 | N58: 1950 | O58: 5
A59: Dexter Hawkins | B59: 2014-10-07 | C59: 109000 | D59: 16800 | E59: 60 | F59: R&D | G59: 4 | H59: 3 | K59: 4 | L59: 60 | N59: 16800 | O59: 3
A60: Marvin Velasquez | B60: 2014-10-09 | C60: 35000 | D60: 3840 | E60: 370 | F60: Administration | G60: 6 | H60: 5 | K60: 6 | L60: 370 | N60: 3840 | O60: 5
A61: Flynn Guthrie | B61: 2014-10-22 | C61: 98000 | D61: 6690 | E61: 60 | F61: Human Resources | G61: 3 | H61: 1 | K61: 3 | L61: 60 | N61: 6690 | O61: 1
A62: Rashad Zimmerman | B62: 2014-10-24 | C62: 71000 | D62: 42050 | E62: 60 | F62: Sales | G62: 2 | H62: 3 | K62: 2 | L62: 60 | N62: 42050 | O62: 3
A63: Tiger Mcintosh | B63: 2014-10-25 | C63: 43000 | D63: 1830 | E63: 450 | F63: Marketing | G63: 4 | H63: 3 | K63: 4 | L63: 450 | N63: 1830 | O63: 3
A64: Stewart Wilcox | B64: 2014-10-28 | C64: 64000 | D64: 9450 | E64: 60 | F64: Sales | G64: 5 | H64: 5 | K64: 5 | L64: 60 | N64: 9450 | O64: 5
A65: Gabriel Ayala | B65: 2014-11-04 | C65: 46000 | D65: 3570 | E65: 3840 | F65: Accounting | G65: 5 | H65: 4 | K65: 5 | L65: 3840 | N65: 3570 | O65: 4
A66: Clayton Riddle | B66: 2014-11-09 | C66: 63000 | D66: 6360 | E66: 650 | F66: IT | G66: 1 | H66: 5 | K66: 1 | L66: 650 | N66: 6360 | O66: 5
A67: Lamar Howard | B67: 2014-11-18 | C67: 38000 | D67: 5470 | E67: 2100 | F67: Administration | G67: 5 | H67: 3 | K67: 5 | L67: 2100 | N67: 5470 | O67: 3
A68: Kuame Griffith | B68: 2014-11-25 | C68: 56000 | D68: 2610 | E68: 3700 | F68: R&D | G68: 6 | H68: 2 | K68: 6 | L68: 3700 | N68: 2610 | O68: 2
A69: Kenyon Petersen | B69: 2014-11-30 | C69: 100000 | D69: 5850 | E69: 7740 | F69: Finance | G69: 3 | H69: 1 | K69: 3 | L69: 7740 | N69: 5850 | O69: 1
A70: Fritz Klein | B70: 2014-12-05 | C70: 20000 | D70: 3130 | E70: 220 | F70: Finance | G70: 3 | H70: 4 | K70: 3 | L70: 220 | N70: 3130 | O70: 4
A71: Tiger Schultz | B71: 2014-12-18 | C71: 35000 | D71: 2290 | E71: 990 | F71: Human Resources | G71: 2 | H71: 4 | K71: 2 | L71: 990 | N71: 2290 | O71: 4
A72: Stone Bush | B72: 2014-12-28 | C72: 87000 | D72: 33050 | E72: 60 | F72: Sales | G72: 6 | H72: 2 | K72: 6 | L72: 60 | N72: 33050 | O72: 2
A73: Hyatt Edwards | B73: 2014-12-30 | C73: 49000 | D73: 6900 | E73: 4560 | F73: Administration | G73: 1 | H73: 2 | K73: 1 | L73: 4560 | N73: 6900 | O73: 2
A74: Darius Sandoval | B74: 2015-01-06 | C74: 91000 | D74: 14100 | E74: 7020 | F74: Marketing | G74: 4 | H74: 1 | K74: 4 | L74: 7020 | N74: 14100 | O74: 1
A75: Aidan Tyler | B75: 2015-01-29 | C75: 63000 | D75: 6950 | E75: 60 | F75: IT | G75: 6 | H75: 4 | K75: 6 | L75: 60 | N75: 6950 | O75: 4
A76: Nasim Hanson | B76: 2015-02-25 | C76: 30000 | D76: 4430 | E76: 840 | F76: Finance | G76: 5 | H76: 5 | K76: 5 | L76: 840 | N76: 4430 | O76: 5
A77: Vaughan Dean | B77: 2015-02-28 | C77: 31000 | D77: 5550 | E77: 60 | F77: Marketing | G77: 5 | H77: 4 | K77: 5 | L77: 60 | N77: 5550 | O77: 4
A78: Brandon Mckenzie | B78: 2015-02-28 | C78: 59000 | D78: 2150 | E78: 60 | F78: IT | G78: 5 | H78: 3 | K78: 5 | L78: 60 | N78: 2150 | O78: 3
A79: Luke Luna | B79: 2015-03-02 | C79: 39000 | D79: 4550 | E79: 2160 | F79: R&D | G79: 1 | H79: 2 | K79: 1 | L79: 2160 | N79: 4550 | O79: 2
A80: Dennis Nguyen | B80: 2015-03-03 | C80: 67000 | D80: 8610 | E80: 60 | F80: IT | G80: 3 | H80: 2 | K80: 3 | L80: 60 | N80: 8610 | O80: 2
A81: Graham Gibbs | B81: 2015-03-24 | C81: 72000 | D81: 9890 | E81: 5500 | F81: Human Resources | G81: 3 | H81: 3 | K81: 3 | L81: 5500 | N81: 9890 | O81: 3
A82: Hayes Gonzales | B82: 2015-03-26 | C82: 39000 | D82: 27050 | E82: 60 | F82: Sales | G82: 4 | H82: 5 | K82: 4 | L82: 60 | N82: 27050 | O82: 5
A83: Phelan Davidson | B83: 2015-04-07 | C83: 47000 | D83: 5780 | E83: 60 | F83: Sales | G83: 3 | H83: 2 | K83: 3 | L83: 60 | N83: 5780 | O83: 2
A84: Henry Holcomb | B84: 2015-04-20 | C84: 57000 | D84: 36050 | E84: 60 | F84: Sales | G84: 5 | H84: 5 | K84: 5 | L84: 60 | N84: 36050 | O84: 5
A85: Porter Le | B85: 2015-04-28 | C85: 29000 | D85: 1800 | E85: 810 | F85: Administration | G85: 4 | H85: 5 | K85: 4 | L85: 810 | N85: 1800 | O85: 5
A86: Patrick Hawkins | B86: 2015-05-24 | C86: 62000 | D86: 6270 | E86: 5280 | F86: Finance | G86: 6 | H86: 4 | K86: 6 | L86: 5280 | N86: 6270 | O86: 4
A87: Kasper Riley | B87: 2015-06-01 | C87: 79000 | D87: 10800 | E87: 1560 | F87: Administration | G87: 4 | H87: 1 | K87: 4 | L87: 1560 | N87: 10800 | O87: 1
A88: Sean Stark | B88: 2015-06-08 | C88: 67000 | D88: 4200 | E88: 3840 | F88: Accounting | G88: 4 | H88: 3 | K88: 4 | L88: 3840 | N88: 4200 | O88: 3
A89: Rafael Griffith | B89: 2015-06-09 | C89: 84000 | D89: 53050 | E89: 60 | F89: Sales | G89: 2 | H89: 1 | K89: 2 | L89: 60 | N89: 53050 | O89: 1
A90: Tad Carson | B90: 2015-06-20 | C90: 63000 | D90: 8130 | E90: 1240 | F90: Customer Support | G90: 3 | H90: 2 | K90: 3 | L90: 1240 | N90: 8130 | O90: 2
A91: Bevis Whitfield | B91: 2015-06-25 | C91: 40000 | D91: 3570 | E91: 1860 | F91: Marketing | G91: 1 | H91: 1 | K91: 1 | L91: 1860 | N91: 3570 | O91: 1
A92: Kenneth Booker | B92: 2015-06-29 | C92: 89000 | D92: 10400 | E92: 60 | F92: IT | G92: 4 | H92: 4 | K92: 4 | L92: 60 | N92: 10400 | O92: 4
A93: Lawrence Hicks | B93: 2015-07-03 | C93: 52000 | D93: 4890 | E93: 4380 | F93: Finance | G93: 5 | H93: 5 | K93: 5 | L93: 4380 | N93: 4890 | O93: 5
A94: Chester Baldwin | B94: 2015-07-20 | C94: 67000 | D94: 8610 | E94: 4470 | F94: IT | G94: 1 | H94: 3 | K94: 1 | L94: 4470 | N94: 8610 | O94: 3
A95: Ralph Alvarez | B95: 2015-07-29 | C95: 58000 | D95: 6450 | E95: 4920 | F95: Accounting | G95: 3 | H95: 5 | K95: 3 | L95: 4920 | N95: 6450 | O95: 5
A96: Clayton Cotton | B96: 2015-08-15 | C96: 70000 | D96: 3690 | E96: 1380 | F96: Accounting | G96: 1 | H96: 3 | K96: 1 | L96: 1380 | N96: 3690 | O96: 3
A97: Gavin Bell | B97: 2015-08-23 | C97: 47000 | D97: 43050 | E97: 60 | F97: Sales | G97: 4 | H97: 4 | K97: 4 | L97: 60 | N97: 43050 | O97: 4
A98: Felix Boyle | B98: 2015-09-07 | C98: 58000 | D98: 9150 | E98: 1680 | F98: R&D | G98: 3 | H98: 1 | K98: 3 | L98: 1680 | N98: 9150 | O98: 1
A99: Malcolm Hutchinson | B99: 2015-09-09 | C99: 45000 | D99: 3100 | E99: 1700 | F99: Human Resources | G99: 1 | H99: 2 | K99: 1 | L99: 1700 | N99: 3100 | O99: 2
A100: Garrison Bray | B100: 2015-09-16 | C100: 114000 | D100: 7650 | E100: 5560 | F100: Administration | G100: 3 | H100: 5 | K100: 3 | L100: 5560 | N100: 7650 | O100: 5
A101: Deacon Whitaker | B101: 2015-09-22 | C101: 52000 | D101: 7770 | E101: 2460 | F101: Accounting | G101: 5 | H101: 3 | K101: 5 | L101: 2460 | N101: 7770 | O101: 3
A102: Jerry Goodwin | B102: 2015-10-05 | C102: 44000 | D102: 6650 | E102: 60 | F102: Customer Support | G102: 6 | H102: 5 | K102: 6 | L102: 60 | N102: 6650 | O102: 5
C103: Salary | D103: Bonus | E103: OT
B104: sum | C104: =SUM(C3:C102) -> 6290000 | D104: =SUM(D3:D102) -> 949140 | E104: 184080 | F104: 7423220 | G104: =SUM(G3:G102) -> 337
B105: average | C105: =AVERAGE(C3:C102) -> 62900 | D105: =AVERAGE(D3:D102) -> 9491.4 | E105: =AVERAGE(E3:E102) -> 1840.8 | G105: 3.37 | H105: 3.03
B106: max | C106: =MAX(C3:C102) -> 149000 | D106: =MAX(D3:D102) -> 53050 | E106: 7890 | G106: 6 | H106: 5
B107: min | C107: =MIN(C3:C102) -> 20000 | D107: =MIN(D3:D102) -> 1800 | E107: 60 | G107: 1 | H107: 1
B108: median | C108: =MEDIAN(C3:C102) -> 61500 | D108: =MEDIAN(D3:D102) -> 6355 | E108: 965 | G108: 3 | H108: 3
B109: mode | C109: =_xlfn.MODE.SNGL(C3:C102) -> 81000 | D109: =_xlfn.MODE.SNGL(D3:D102) -> 2370 | E109: 60 | G109: 3 | H109: 5
F110: SICK Count If
F111: 1 | G111: =COUNTIF(G3:G102,1) -> 18
F112: 2 | G112: =COUNTIF(G3:G102,2) -> 13
F113: 3 | G113: =COUNTIF(G3:G102,3) -> 24
F114: 4 | G114: =COUNTIF(G3:G102,4) -> 16
F115: 5 | G115: =COUNTIF(G3:G102,5) -> 17
F116: 6 | G116: =COUNTIF(G3:G102,6) -> 12
H117: Perf | I117: Bonus | J117: OT
B118: Count | F118: SICK Count If | G118: AVG | H118: AVG
B119: =COUNTIF(F$3:F$102,"Accounting") -> 10 | C119: Accounting | F119: Accounting | G119: =SUMIF(F3:F102,"Accounting", G3:G102) -> 32 | H119: =SUMIF($F$3:$F$102,"Accounting", H$3:H$102)/$B$119 -> 3.6 | I119: =SUMIF($F$3:$F$102,"Accounting", D$3:D$102)/$B$119 -> 5054 | J119: =SUMIF($F$3:$F$102,"Accounting", E$3:E$102)/$B$119 -> 2949
B120: =COUNTIF(F$3:F$102,"Administration") -> 13 | C120: Administration | F120: Administration | G120: =SUMIF(F3:F102,"Administration", G3:G102) -> 47 | H120: =SUMIF(F$3:F$102,"Administration", H$3:H$102)/B120 -> 2.692307692 | I120: =SUMIF($F$3:$F$102,"Administration", D$3:D$102)/$B$120 -> 7578.461538 | J120: =SUMIF($F$3:$F$102,"Administration", E$3:E$102)/$B$120 -> 3132.307692
B121: =COUNTIF(F$3:F$102,"Customer Support") -> 5 | C121: Customer Support | F121: Customer Support | G121: =SUMIF(F3:F102,"Customer Support", G3:G102) -> 17 | H121: =SUMIF(F$3:F$102,"Customer Support", H$3:H$102)/B121 -> 3.8 | I121: =SUMIF($F$3:$F$102,"Customer Support", D$3:D$102)/$B$121 -> 6784 | J121: =SUMIF($F$3:$F$102,"Customer Support", E$3:E$102)/$B$121 -> 2462
B122: =COUNTIF(F$3:F$102,"Finance") -> 10 | C122: Finance | F122: Finance | G122: =SUMIF(F3:F102,"Finance", G3:G102) -> 38 | H122: =SUMIF(F$3:F$102,"Finance", H$3:H$102)/B122 -> 3.1 | I122: =SUMIF($F$3:$F$102,"Finance", D$3:D$102)/$B$122 -> 5283 | J122: =SUMIF($F$3:$F$102,"Finance", E$3:E$102)/$B$122 -> 2640
B123: =COUNTIF(F$3:F$102,"Human Resources") -> 9 | C123: Human Resources | F123: Human Resources | G123: =SUMIF(F3:F102,"Human Resources", G3:G102) -> 20 | H123: =SUMIF(F$3:F$102,"Human Resources", H$3:H$102)/B123 -> 2.777777778 | I123: =SUMIF($F$3:$F$102,"Human Resources", D$3:D$102)/$B$123 -> 5368.888889 | J123: =SUMIF($F$3:$F$102,"Human Resources", E$3:E$102)/$B$123 -> 1456.666667
B124: =COUNTIF(F$3:F$102,"IT") -> 15 | C124: IT | F124: IT | G124: =SUMIF(F3:F102,"IT", G3:G102) -> 45 | H124: =SUMIF(F$3:F$102,"IT", H$3:H$102)/B124 -> 3.2 | I124: =SUMIF($F$3:$F$102,"IT", D$3:D$102)/$B$124 -> 6718.666667 | J124: =SUMIF($F$3:$F$102,"IT", E$3:E$102)/$B$124 -> 938
B125: =COUNTIF(F$3:F$102,"Marketing") -> 11 | C125: Marketing | F125: Marketing | G125: =SUMIF(F3:F102,"Marketing", G3:G102) -> 40 | H125: =SUMIF(F$3:F$102,"Marketing", H$3:H$102)/B125 -> 2.454545455 | I125: =SUMIF($F$3:$F$102,"Marketing", D$3:D$102)/$B$125 -> 5737.272727 | J125: =SUMIF($F$3:$F$102,"Marketing", E$3:E$102)/$B$125 -> 1670.909091
B126: =COUNTIF(F$3:F$102,"R&D") -> 14 | C126: R&D | F126: R&D | G126: =SUMIF(F3:F102, "R&D", G3:G102) -> 47 | H126: =SUMIF(F$3:F$102,"R&D", H$3:H$102)/B126 -> 2.357142857 | I126: =SUMIF($F$3:$F$102,"R&D", D$3:D$102)/$B$126 -> 7074.285714 | J126: =SUMIF($F$3:$F$102,"R&D", E$3:E$102)/$B$126 -> 2058.571429
B127: =COUNTIF(F$3:F$102,"Sales") -> 13 | C127: Sales | F127: Sales | G127: =SUMIF(F3:F102,"Sales", G3:G102) -> 51 | H127: =SUMIF(F$3:F$102,"Sales", H$3:H$102)/B127 -> 3.769230769 | I127: =SUMIF($F$3:$F$102,"Sales", D$3:D$102)/$B$127 -> 30929.23077 | J127: =SUMIF($F$3:$F$102,"Sales", E$3:E$102)/$B$127 -> 60
